[Event "GrandPrix_30.05"]
[Site "Chess.com"]
[Date "2020.05.30"]
[Round "2"]
[White "Lion_DL"]
[Black "AvitalBor"]
[Result "0-1"]
[WhiteElo "2154"]
[BlackElo "2633"]
[TimeControl "600+2"]
[EndTime "8:56:05 PDT"]
[Termination "AvitalBor won by resignation"]

1. e4 {[%clk 0:09:59.9]} 1... e5 {[%clk 0:10:00.9]} 2. f4 {[%clk 0:09:57.9]}
2... Bc5 {[%clk 0:10:01]} 3. Nf3 {[%clk 0:09:58.3]} 3... d6 {[%clk 0:10:02.2]}
4. Nc3 {[%clk 0:09:58.5]} 4... Nf6 {[%clk 0:09:52.5]} 5. Bc4 {[%clk 0:09:58.3]}
5... Nc6 {[%clk 0:09:52.9]} 6. d3 {[%clk 0:09:59.7]} 6... a6 {[%clk 0:09:50.5]}
7. Nd5 {[%clk 0:09:59.6]} 7... Nxd5 {[%clk 0:09:35.8]} 8. Bxd5 {[%clk
0:09:58.8]} 8... Ne7 {[%clk 0:09:00.4]} 9. Bb3 {[%clk 0:09:48.4]} 9... exf4
{[%clk 0:08:45.5]} 10. Bxf4 {[%clk 0:09:42.1]} 10... Ng6 {[%clk 0:08:10.2]} 11.
Bg5 {[%clk 0:09:34.8]} 11... f6 {[%clk 0:08:11]} 12. Bd2 {[%clk 0:09:30.9]}
12... Qe7 {[%clk 0:08:11.6]} 13. Qe2 {[%clk 0:09:14.5]} 13... Bd7 {[%clk
0:08:12.3]} 14. O-O-O {[%clk 0:09:10]} 14... O-O-O {[%clk 0:08:13.3]} 15. d4
{[%clk 0:08:57.1]} 15... Bb6 {[%clk 0:08:07.8]} 16. h3 {[%clk 0:08:51]} 16...
Kb8 {[%clk 0:08:08.7]} 17. Rhe1 {[%clk 0:08:45]} 17... Rhe8 {[%clk 0:08:08.2]}
18. Qd3 {[%clk 0:08:38.7]} 18... Bc6 {[%clk 0:08:02.1]} 19. Bd5 {[%clk
0:08:13.2]} 19... Qd7 {[%clk 0:07:54.4]} 20. Bxc6 {[%clk 0:06:54.1]} 20... Qxc6
{[%clk 0:07:56.3]} 21. h4 {[%clk 0:06:55.4]} 21... d5 {[%clk 0:07:38.6]} 22. e5
{[%clk 0:06:46.3]} 22... fxe5 {[%clk 0:07:30.9]} 23. dxe5 {[%clk 0:06:37.5]}
23... h6 {[%clk 0:07:18.8]} 24. h5 {[%clk 0:05:12.1]} 24... Nf8 {[%clk
0:07:12.6]} 25. Re2 {[%clk 0:05:11.6]} 25... Ne6 {[%clk 0:07:11.3]} 26. Qg6
{[%clk 0:03:52]} 26... Qb5 {[%clk 0:06:13.9]} 27. Rde1 {[%clk 0:03:34]} 27... d4
{[%clk 0:06:14.5]} 28. Qd3 {[%clk 0:03:20.5]} 28... Qc6 {[%clk 0:06:11.9]} 29.
Kb1 {[%clk 0:02:35.3]} 29... Rd5 {[%clk 0:05:55.5]} 30. Bc1 {[%clk 0:02:03.7]}
30... Rb5 {[%clk 0:05:50.8]} 31. Rd1 {[%clk 0:01:49.4]} 31... Rd8 {[%clk
0:05:23.6]} 32. Qe4 {[%clk 0:01:40.9]} 32... Rdd5 {[%clk 0:05:20.2]} 33. b3
{[%clk 0:01:03.3]} 33... Nc5 {[%clk 0:01:34.2]} 34. Qg6 {[%clk 0:00:38.1]} 34...
Ne6 {[%clk 0:01:35]} 35. Qe4 {[%clk 0:00:37.7]} 35... Ka8 {[%clk 0:01:35.6]} 36.
Bb2 {[%clk 0:00:36.9]} 36... Nc5 {[%clk 0:01:36.8]} 37. Qg6 {[%clk 0:00:37.7]}
37... Qxg6 {[%clk 0:01:37.5]} 38. hxg6 {[%clk 0:00:38.5]} 38... Ne6 {[%clk
0:01:38.9]} 39. a4 {[%clk 0:00:33.7]} 39... Rbc5 {[%clk 0:01:38.7]} 40. Red2
{[%clk 0:00:21.2]} 40... Rc6 {[%clk 0:01:34.9]} 41. Bxd4 {[%clk 0:00:18]} 41...
Nxd4 {[%clk 0:01:28.4]} 42. Nxd4 {[%clk 0:00:15.9]} 42... Rxg6 {[%clk
0:01:28.4]} 43. Nf3 {[%clk 0:00:16.8]} 43... Rxd2 {[%clk 0:01:23]} 44. Rxd2
{[%clk 0:00:18.7]} 44... Re6 {[%clk 0:01:15.4]} 45. c4 {[%clk 0:00:18.4]} 45...
g5 {[%clk 0:01:15]} 46. Rd8+ {[%clk 0:00:18.4]} 46... Ka7 {[%clk 0:01:15.5]} 47.
Rg8 {[%clk 0:00:19.9]} 47... Be3 {[%clk 0:01:13.3]} 48. g4 {[%clk 0:00:18.3]}
48... Bf4 {[%clk 0:01:12.5]} 49. Rg7 {[%clk 0:00:19.3]} 49... Bxe5 {[%clk
0:01:11.1]} 50. Nxe5 {[%clk 0:00:18]} 50... Rxe5 {[%clk 0:01:12.4]} 51. Rxc7
{[%clk 0:00:19.9]} 51... Re4 {[%clk 0:00:58.9]} 52. Rh7 {[%clk 0:00:20.9]} 52...
Kb6 {[%clk 0:01:00]} 53. Kc2 {[%clk 0:00:21.1]} 53... Rxg4 {[%clk 0:00:59.8]}
54. Rxh6+ {[%clk 0:00:21.4]} 54... Kc5 {[%clk 0:01:00.8]} 55. Rh7 {[%clk
0:00:20.8]} 55... b6 {[%clk 0:01:01.7]} 56. Rb7 {[%clk 0:00:19.8]} 56... a5
{[%clk 0:01:01.7]} 57. Rb8 {[%clk 0:00:18.4]} 57... Rg3 {[%clk 0:01:02]} 58. Rb7
{[%clk 0:00:17.9]} 58... g4 {[%clk 0:01:02.8]} 59. Rg7 {[%clk 0:00:19.3]} 59...
Kb4 {[%clk 0:01:01.6]} 60. Rg6 {[%clk 0:00:20.7]} 60... Rc3+ {[%clk 0:00:22.8]}
61. Kd2 {[%clk 0:00:20.7]} 61... Rxb3 {[%clk 0:00:23.9]} 62. Rxb6+ {[%clk
0:00:21]} 62... Kxc4 {[%clk 0:00:18.8]} 63. Rg6 {[%clk 0:00:22.5]} 63... g3
{[%clk 0:00:19.4]} 64. Kc2 {[%clk 0:00:23.4]} 64... Rc3+ {[%clk 0:00:15.2]} 65.
Kb2 {[%clk 0:00:24.2]} 65... Re3 {[%clk 0:00:14.1]} 66. Rg4+ {[%clk 0:00:25.4]}
66... Kd3 {[%clk 0:00:15.2]} 67. Rg5 {[%clk 0:00:23.7]} 67... Ke2 {[%clk
0:00:16.1]} 68. Rxa5 {[%clk 0:00:24.9]} 68... g2 {[%clk 0:00:16.9]} 69. Rg5
{[%clk 0:00:26.3]} 69... Kf2 {[%clk 0:00:18.2]} 70. a5 {[%clk 0:00:27.6]} 70...
g1=Q {[%clk 0:00:17.4]} 71. Rxg1 {[%clk 0:00:28.4]} 71... Kxg1 {[%clk
0:00:18.7]} 72. a6 {[%clk 0:00:29.7]} 72... Re6 {[%clk 0:00:19.7]} 73. a7 {[%clk
0:00:30.1]} 73... Ra6 {[%clk 0:00:21.2]} 0-1

[Event "GrandPrix_30.05"]
[Site "Chess.com"]
[Date "2020.05.30"]
[Round "2"]
[White "eristeski7"]
[Black "GadimbayliA"]
[Result "1/2-1/2"]
[WhiteElo "2171"]
[BlackElo "2511"]
[TimeControl "600+2"]
[EndTime "8:56:06 PDT"]
[Termination "Game drawn by agreement"]

1. e4 {[%clk 0:10:01.5]} 1... e5 {[%clk 0:10:00.7]} 2. Nf3 {[%clk 0:10:01.2]}
2... d5 {[%clk 0:10:01.3]} 3. exd5 {[%clk 0:08:27.4]} 3... e4 {[%clk 0:10:03.2]}
4. Qe2 {[%clk 0:08:25.4]} 4... Nf6 {[%clk 0:10:04]} 5. Nc3 {[%clk 0:08:12.7]}
5... Be7 {[%clk 0:10:04.8]} 6. Nxe4 {[%clk 0:07:46.7]} 6... O-O {[%clk
0:10:05.4]} 7. d3 {[%clk 0:07:46.5]} 7... Nxd5 {[%clk 0:10:06.3]} 8. c4 {[%clk
0:06:03.4]} 8... Nb4 {[%clk 0:09:55.5]} 9. Nc3 {[%clk 0:05:43.2]} 9... Bf5
{[%clk 0:08:52]} 10. Qd1 {[%clk 0:05:42.1]} 10... Nxd3+ {[%clk 0:06:32.2]} 11.
Bxd3 {[%clk 0:05:23.9]} 11... Bxd3 {[%clk 0:06:34.1]} 12. Be3 {[%clk 0:05:21.4]}
12... Bxc4 {[%clk 0:06:21.2]} 13. Ne5 {[%clk 0:04:45.1]} 13... Ba6 {[%clk
0:05:33.4]} 14. Qxd8 {[%clk 0:04:36.4]} 14... Rxd8 {[%clk 0:05:35.3]} 15. Rd1
{[%clk 0:04:38]} 15... Rxd1+ {[%clk 0:05:31.5]} 16. Kxd1 {[%clk 0:04:37.9]}
16... Bf6 {[%clk 0:05:05.9]} 17. Nf3 {[%clk 0:03:44.4]} 17... Nc6 {[%clk
0:05:01.4]} 18. Kc1 {[%clk 0:03:44.8]} 18... Nb4 {[%clk 0:04:59.5]} 19. Rd1
{[%clk 0:03:38]} 19... Rd8 {[%clk 0:03:12.8]} 20. Rxd8+ {[%clk 0:03:37]} 20...
Bxd8 {[%clk 0:03:14.7]} 21. a3 {[%clk 0:03:38.6]} 21... Nc6 {[%clk 0:03:11.7]}
22. b4 {[%clk 0:03:38.7]} 22... Bf1 {[%clk 0:02:53.4]} 23. b5 {[%clk 0:01:36.2]}
23... Na5 {[%clk 0:02:52.3]} 24. g3 {[%clk 0:01:34.8]} 24... Nc4 {[%clk
0:02:04.8]} 25. Bxa7 {[%clk 0:01:28.4]} 25... Nxa3 {[%clk 0:01:54.8]} 26. Nd4
{[%clk 0:00:57.2]} 26... Bf6 {[%clk 0:01:53.2]} 27. Nd5 {[%clk 0:00:56]} 27...
Bxd4 {[%clk 0:01:49.5]} 28. Bxd4 {[%clk 0:00:57.9]} 28... Nxb5 {[%clk 0:01:51]}
29. Be5 {[%clk 0:00:58.2]} 29... c6 {[%clk 0:01:48.2]} 30. Nc3 {[%clk 0:00:58]}
30... Na3 {[%clk 0:01:27.2]} 31. Ne4 {[%clk 0:00:51.5]} 31... f6 {[%clk
0:01:20.9]} 32. Bf4 {[%clk 0:00:47.4]} 32... Nc4 {[%clk 0:00:52.5]} 33. Nd2
{[%clk 0:00:44.1]} 33... Nxd2 {[%clk 0:00:40]} 34. Kxd2 {[%clk 0:00:43.8]} 34...
Kf7 {[%clk 0:00:41.9]} 35. Ke3 {[%clk 0:00:44.2]} 35... c5 {[%clk 0:00:17.7]}
36. Bd6 {[%clk 0:00:43.2]} 36... b6 {[%clk 0:00:18.6]} 37. Bc7 {[%clk
0:00:44.3]} 37... b5 {[%clk 0:00:19.5]} 38. Bd6 {[%clk 0:00:45.1]} 38... c4
{[%clk 0:00:20.5]} 39. Kd4 {[%clk 0:00:46.3]} 39... Ke6 {[%clk 0:00:21.8]} 40.
Bf8 {[%clk 0:00:45.8]} 40... g6 {[%clk 0:00:22.8]} 41. Ba3 {[%clk 0:00:45.2]}
41... Kf5 {[%clk 0:00:22.9]} 42. Be7 {[%clk 0:00:45]} 42... h5 {[%clk
0:00:20.8]} 43. Kc3 {[%clk 0:00:36.3]} 43... Bd3 {[%clk 0:00:16.1]} 44. Bd8
{[%clk 0:00:34]} 44... Be4 {[%clk 0:00:17.2]} 45. Be7 {[%clk 0:00:33.9]} 45...
Bf3 {[%clk 0:00:18.4]} 46. Bd8 {[%clk 0:00:33.6]} 46... Kg4 {[%clk 0:00:09.1]}
47. h4 {[%clk 0:00:24.2]} 47... Kf5 {[%clk 0:00:10.3]} 48. Be7 {[%clk
0:00:24.8]} 48... Bc6 {[%clk 0:00:10]} 49. Bd8 {[%clk 0:00:25.6]} 49... Ke6
{[%clk 0:00:11.2]} 50. Bb6 {[%clk 0:00:24.3]} 50... g5 {[%clk 0:00:10.6]} 51.
Bd8 {[%clk 0:00:25]} 51... gxh4 {[%clk 0:00:06.1]} 52. gxh4 {[%clk 0:00:25.1]}
52... Ke5 {[%clk 0:00:07.7]} 53. Be7 {[%clk 0:00:24.4]} 53... f5 {[%clk
0:00:08.2]} 54. Bg5 {[%clk 0:00:14]} 54... Ke4 {[%clk 0:00:04]} 55. f4 {[%clk
0:00:12.6]} 55... Kf3 {[%clk 0:00:05]} 56. Bh6 {[%clk 0:00:13.6]} 56... Bd5
{[%clk 0:00:05.7]} 57. Bg5 {[%clk 0:00:14.6]} 57... Kg4 {[%clk 0:00:07.3]} 58.
Kb4 {[%clk 0:00:14.1]} 58... Bf7 {[%clk 0:00:09.2]} 59. Kc3 {[%clk 0:00:15.3]}
59... Kf3 {[%clk 0:00:10.3]} 60. Kb4 {[%clk 0:00:16.7]} 60... Ke4 {[%clk
0:00:10]} 61. Kc3 {[%clk 0:00:18.1]} 61... Kd5 {[%clk 0:00:11.5]} 62. Be7 {[%clk
0:00:18.9]} 62... Ke4 {[%clk 0:00:12.9]} 63. Bg5 {[%clk 0:00:19.8]} 63... b4+
{[%clk 0:00:13.2]} 64. Kxb4 {[%clk 0:00:20.3]} 64... Kd3 {[%clk 0:00:15.1]} 65.
Bf6 {[%clk 0:00:21.1]} 65... Ke3 {[%clk 0:00:16.3]} 66. Bg5 {[%clk 0:00:18]}
66... Kf3 {[%clk 0:00:14.7]} 67. Kc3 {[%clk 0:00:18.6]} 1/2-1/2

[Event "GrandPrix_30.05"]
[Site "Chess.com"]
[Date "2020.05.30"]
[Round "2"]
[White "DariaVoit"]
[Black "Nodar_Lortkipanidze"]
[Result "1-0"]
[WhiteElo "2342"]
[BlackElo "2514"]
[TimeControl "600+2"]
[EndTime "8:56:10 PDT"]
[Termination "DariaVoit won by resignation"]

1. d4 {[%clk 0:10:01.9]} 1... e6 {[%clk 0:09:59.8]} 2. c4 {[%clk 0:10:00.2]}
2... b6 {[%clk 0:10:01]} 3. e4 {[%clk 0:09:59.3]} 3... Bb7 {[%clk 0:10:01.8]} 4.
Bd3 {[%clk 0:09:53.9]} 4... f5 {[%clk 0:10:02.6]} 5. exf5 {[%clk 0:09:52.1]}
5... Bb4+ {[%clk 0:10:03.7]} 6. Kf1 {[%clk 0:09:52.8]} 6... Nf6 {[%clk
0:10:05.1]} 7. c5 {[%clk 0:09:53.7]} 7... bxc5 {[%clk 0:10:05.7]} 8. a3 {[%clk
0:09:48.8]} 8... c4 {[%clk 0:10:06.9]} 9. Bxc4 {[%clk 0:09:44.9]} 9... Bd6
{[%clk 0:10:03.4]} 10. fxe6 {[%clk 0:09:39.7]} 10... dxe6 {[%clk 0:10:02.9]} 11.
Bxe6 {[%clk 0:09:37.4]} 11... Ba6+ {[%clk 0:08:39]} 12. Ne2 {[%clk 0:09:24.7]}
12... Ne4 {[%clk 0:08:21.6]} 13. Bd5 {[%clk 0:08:03.9]} 13... Nxf2 {[%clk
0:08:22.2]} 14. Kxf2 {[%clk 0:08:03.7]} 14... Rf8+ {[%clk 0:07:56.3]} 15. Bf3
{[%clk 0:08:01.6]} 15... Bb7 {[%clk 0:06:56.5]} 16. Ng3 {[%clk 0:07:55.2]} 16...
Qh4 {[%clk 0:06:42]} 17. Nc3 {[%clk 0:07:30.7]} 17... Nc6 {[%clk 0:06:32]} 18.
Re1+ {[%clk 0:05:59.3]} 18... Be7 {[%clk 0:05:46.5]} 19. Kg1 {[%clk 0:04:07.8]}
19... O-O-O {[%clk 0:05:37.6]} 20. Be3 {[%clk 0:04:00.8]} 20... Rxf3 {[%clk
0:05:28.3]} 21. Qxf3 {[%clk 0:03:45.7]} 21... Nxd4 {[%clk 0:05:27.3]} 22. Qf2
{[%clk 0:03:40.4]} 22... Rf8 {[%clk 0:05:03.1]} 23. Bxd4 {[%clk 0:03:24.5]}
23... Rxf2 {[%clk 0:05:03.4]} 24. Bxf2 {[%clk 0:03:26.4]} 24... Bd6 {[%clk
0:04:55]} 25. Rad1 {[%clk 0:03:01.5]} 25... Bc6 {[%clk 0:04:54.1]} 26. Nce4
{[%clk 0:02:28.7]} 26... Bf4 {[%clk 0:04:47.3]} 27. Nd2 {[%clk 0:02:06.9]} 27...
Qg5 {[%clk 0:04:40.2]} 28. Nf3 {[%clk 0:02:05.2]} 28... Qg6 {[%clk 0:04:30.7]}
29. Rd4 {[%clk 0:01:59.3]} 29... Bd6 {[%clk 0:04:28.2]} 30. Ne4 {[%clk
0:01:55.1]} 30... Bf4 {[%clk 0:04:14.7]} 31. Ng3 {[%clk 0:01:54.5]} 31... Bd6
{[%clk 0:04:14.7]} 32. Rc1 {[%clk 0:01:52.4]} 32... Kb7 {[%clk 0:03:44.5]} 33.
Nh4 {[%clk 0:01:17.6]} 33... Qg5 {[%clk 0:03:42]} 34. Re1 {[%clk 0:01:12.3]}
34... Bc5 {[%clk 0:03:35.4]} 35. Rc4 {[%clk 0:01:10.9]} 35... Bd6 {[%clk
0:03:21.1]} 36. Nf3 {[%clk 0:01:07.6]} 36... Bxf3 {[%clk 0:02:50.1]} 37. gxf3
{[%clk 0:01:08.3]} 37... h5 {[%clk 0:02:51.8]} 38. h4 {[%clk 0:00:58]} 38... Qd5
{[%clk 0:02:51.9]} 39. Rc3 {[%clk 0:00:57.1]} 39... Qf7 {[%clk 0:01:41.2]} 40.
Ne4 {[%clk 0:00:48.2]} 40... Bf4 {[%clk 0:01:39.5]} 41. Rd1 {[%clk 0:00:39.2]}
41... Qg6+ {[%clk 0:01:36.1]} 42. Kf1 {[%clk 0:00:40.1]} 42... Qa6+ {[%clk
0:01:35.9]} 43. Kg2 {[%clk 0:00:38.6]} 43... Qg6+ {[%clk 0:01:36.9]} 44. Ng3
{[%clk 0:00:37.9]} 44... Bd6 {[%clk 0:01:28.4]} 45. Rd5 {[%clk 0:00:32.9]} 45...
a6 {[%clk 0:01:23.5]} 46. Rg5 {[%clk 0:00:31.9]} 46... Qb1 {[%clk 0:01:23.9]}
47. Rb3+ {[%clk 0:00:32.5]} 47... Kc6 {[%clk 0:01:19.8]} 48. Ne4 {[%clk
0:00:33.5]} 48... Bf4 {[%clk 0:01:03.7]} 49. Rxg7 {[%clk 0:00:32.3]} 49... Qa2
{[%clk 0:01:00.4]} 50. Rg6+ {[%clk 0:00:32]} 50... Kd7 {[%clk 0:00:59.2]} 51.
Rd3+ {[%clk 0:00:26.6]} 51... Ke8 {[%clk 0:01:00]} 52. b4 {[%clk 0:00:23.6]}
52... Qc4 {[%clk 0:00:58.4]} 53. Rc3 {[%clk 0:00:23]} 53... Qa2 {[%clk
0:00:54.3]} 54. Nc5 {[%clk 0:00:15.2]} 54... Kf7 {[%clk 0:00:53.4]} 55. Rxa6
{[%clk 0:00:15.1]} 55... Be5 {[%clk 0:00:54.4]} 56. Rd3 {[%clk 0:00:15.3]} 56...
Bd6 {[%clk 0:00:49.1]} 57. Ne4 {[%clk 0:00:14.8]} 57... Be5 {[%clk 0:00:47.5]}
58. Rc6 {[%clk 0:00:13.6]} 58... Ke8 {[%clk 0:00:45.1]} 59. Nc5 {[%clk
0:00:13.2]} 59... Qg8+ {[%clk 0:00:45.7]} 60. Kf1 {[%clk 0:00:13.7]} 60... Bd6
{[%clk 0:00:44.4]} 61. Rcxd6 {[%clk 0:00:14]} 61... cxd6 {[%clk 0:00:45.4]} 62.
Rxd6 {[%clk 0:00:15.9]} 62... Qc4+ {[%clk 0:00:47]} 63. Rd3 {[%clk 0:00:17.4]}
63... Qc1+ {[%clk 0:00:47.3]} 64. Kg2 {[%clk 0:00:18]} 64... Qc4 {[%clk
0:00:48.9]} 65. Re3+ {[%clk 0:00:19.1]} 65... Kf7 {[%clk 0:00:49.9]} 66. Ne4
{[%clk 0:00:20]} 66... Kg6 {[%clk 0:00:49.3]} 67. Ng5 {[%clk 0:00:21.1]} 67...
Qa2 {[%clk 0:00:46]} 68. Rd3 {[%clk 0:00:21.6]} 68... Qb2 {[%clk 0:00:45.2]} 69.
Rd6+ {[%clk 0:00:21.9]} 69... Kf5 {[%clk 0:00:44.4]} 70. Ra6 {[%clk 0:00:22.1]}
70... Qe2 {[%clk 0:00:44.2]} 71. Ra8 {[%clk 0:00:20.4]} 71... Qc4 {[%clk
0:00:42.9]} 72. Rb8 {[%clk 0:00:19.8]} 72... Qc7 {[%clk 0:00:42.8]} 73. Rb5+
{[%clk 0:00:18.4]} 73... Kg6 {[%clk 0:00:43.6]} 74. a4 {[%clk 0:00:19.7]} 74...
Qc4 {[%clk 0:00:42]} 75. Rb6+ {[%clk 0:00:20.2]} 75... Kf5 {[%clk 0:00:43.3]}
76. a5 {[%clk 0:00:21.7]} 76... Qd4 {[%clk 0:00:44.8]} 77. Bxd4 {[%clk
0:00:21.2]} 77... Kf4 {[%clk 0:00:46.2]} 1-0

[Event "GrandPrix_30.05"]
[Site "Chess.com"]
[Date "2020.05.30"]
[Round "2"]
[White "Gareth-Bale11"]
[Black "TheEternalPatzer"]
[Result "1-0"]
[WhiteElo "2448"]
[BlackElo "2065"]
[TimeControl "600+2"]
[EndTime "8:57:12 PDT"]
[Termination "Gareth-Bale11 won on time"]

1. d4 {[%clk 0:10:00]} 1... d5 {[%clk 0:09:59.6]} 2. c4 {[%clk 0:10:00.4]} 2...
e6 {[%clk 0:09:59.8]} 3. Nf3 {[%clk 0:10:00.9]} 3... Nf6 {[%clk 0:09:59]} 4. Nc3
{[%clk 0:10:00.6]} 4... Bb4 {[%clk 0:09:58.3]} 5. Qa4+ {[%clk 0:09:58.5]} 5...
Nc6 {[%clk 0:09:58.3]} 6. Bg5 {[%clk 0:09:59.5]} 6... h6 {[%clk 0:09:51.6]} 7.
Bxf6 {[%clk 0:09:59.7]} 7... Qxf6 {[%clk 0:09:50.8]} 8. e3 {[%clk 0:10:01.6]}
8... O-O {[%clk 0:09:48.2]} 9. Rc1 {[%clk 0:10:00.7]} 9... Bd7 {[%clk
0:08:36.5]} 10. Qc2 {[%clk 0:09:18.6]} 10... dxc4 {[%clk 0:08:12.1]} 11. Bxc4
{[%clk 0:09:17.1]} 11... e5 {[%clk 0:08:05.7]} 12. d5 {[%clk 0:08:29.4]} 12...
Ne7 {[%clk 0:07:43.7]} 13. O-O {[%clk 0:08:28.1]} 13... Bf5 {[%clk 0:07:13.8]}
14. Qb3 {[%clk 0:07:44.5]} 14... Bd6 {[%clk 0:06:18.1]} 15. Nd2 {[%clk
0:07:32.4]} 15... Qg6 {[%clk 0:06:00.9]} 16. Rfe1 {[%clk 0:07:22.1]} 16... e4
{[%clk 0:05:20.6]} 17. Qc2 {[%clk 0:06:41.7]} 17... Rfe8 {[%clk 0:04:57.3]} 18.
Ndxe4 {[%clk 0:05:53]} 18... c6 {[%clk 0:04:33.9]} 19. Rcd1 {[%clk 0:04:11.6]}
19... Nxd5 {[%clk 0:03:43.6]} 20. Bxd5 {[%clk 0:04:09.6]} 20... cxd5 {[%clk
0:03:44]} 21. Rxd5 {[%clk 0:04:10.4]} 21... Bb4 {[%clk 0:03:07.7]} 22. Nf6+
{[%clk 0:03:40.2]} 22... Qxf6 {[%clk 0:02:53.1]} 23. Qxf5 {[%clk 0:03:06.3]}
23... Bxc3 {[%clk 0:02:49.5]} 24. bxc3 {[%clk 0:03:08.2]} 24... Qxc3 {[%clk
0:02:46.2]} 25. Red1 {[%clk 0:03:09.3]} 25... Qf6 {[%clk 0:02:25.2]} 26. Qxf6
{[%clk 0:03:06.3]} 26... gxf6 {[%clk 0:02:25.4]} 27. Rd7 {[%clk 0:03:05.9]}
27... b5 {[%clk 0:02:25.6]} 28. g3 {[%clk 0:02:48.4]} 28... a5 {[%clk
0:02:22.2]} 29. a3 {[%clk 0:01:51.8]} 29... Rab8 {[%clk 0:02:09.4]} 30. Kg2
{[%clk 0:01:31.3]} 30... b4 {[%clk 0:01:50.9]} 31. axb4 {[%clk 0:01:17.7]} 31...
axb4 {[%clk 0:01:52.8]} 32. Rb1 {[%clk 0:01:18.1]} 32... Re6 {[%clk 0:01:51.4]}
33. Rb3 {[%clk 0:01:01.4]} 33... Rc6 {[%clk 0:01:50.6]} 34. Rd4 {[%clk
0:01:01.2]} 34... Rcb6 {[%clk 0:01:50.9]} 35. Kf3 {[%clk 0:01:02.4]} 35... Kg7
{[%clk 0:01:49]} 36. Ke2 {[%clk 0:01:02.8]} 36... f5 {[%clk 0:01:47.9]} 37. Kd2
{[%clk 0:00:55.3]} 37... Kg6 {[%clk 0:01:46.7]} 38. Kc2 {[%clk 0:00:55.5]} 38...
Rc6+ {[%clk 0:01:21.6]} 39. Kb2 {[%clk 0:00:55.3]} 39... Rbc8 {[%clk 0:01:21.6]}
40. Rd2 {[%clk 0:00:55.4]} 40... Rc4 {[%clk 0:01:16.7]} 41. Rbd3 {[%clk
0:00:55.4]} 41... h5 {[%clk 0:00:57.2]} 42. Rd4 {[%clk 0:00:53.3]} 42... h4
{[%clk 0:00:47.8]} 43. Rxc4 {[%clk 0:00:33.3]} 43... Rxc4 {[%clk 0:00:46]} 44.
Rd4 {[%clk 0:00:33.9]} 44... Rc8 {[%clk 0:00:24.4]} 45. Rxh4 {[%clk 0:00:33.5]}
45... Rd8 {[%clk 0:00:21.5]} 46. Rd4 {[%clk 0:00:31.4]} 46... Rb8 {[%clk
0:00:19.2]} 47. Kb3 {[%clk 0:00:31.6]} 47... Kg5 {[%clk 0:00:20.1]} 48. h3
{[%clk 0:00:27.9]} 48... Rh8 {[%clk 0:00:19.8]} 49. h4+ {[%clk 0:00:28.9]} 49...
Kh5 {[%clk 0:00:20.5]} 50. Kxb4 {[%clk 0:00:28.4]} 50... Rc8 {[%clk 0:00:19.9]}
51. Rc4 {[%clk 0:00:29.2]} 51... Rd8 {[%clk 0:00:19.8]} 52. Kc3 {[%clk
0:00:29.7]} 52... Rd1 {[%clk 0:00:19.8]} 53. Kc2 {[%clk 0:00:28.1]} 53... Rf1
{[%clk 0:00:15.4]} 54. Rf4 {[%clk 0:00:28.9]} 54... Kg6 {[%clk 0:00:16]} 55. Kd2
{[%clk 0:00:30.2]} 55... Ra1 {[%clk 0:00:13.9]} 56. Ke2 {[%clk 0:00:30.9]} 56...
Ra2+ {[%clk 0:00:15.8]} 57. Kf3 {[%clk 0:00:32.1]} 57... Ra3 {[%clk 0:00:15.9]}
58. Rb4 {[%clk 0:00:30.3]} 58... Rc3 {[%clk 0:00:15.5]} 59. Kf4 {[%clk
0:00:29.9]} 59... Rc2 {[%clk 0:00:15.8]} 60. f3 {[%clk 0:00:29.5]} 60... Rc5
{[%clk 0:00:15.6]} 61. Rb6+ {[%clk 0:00:24]} 61... f6 {[%clk 0:00:12.8]} 62. Rd6
{[%clk 0:00:23.8]} 62... Rc4+ {[%clk 0:00:12.5]} 63. Rd4 {[%clk 0:00:23.1]}
63... Rc5 {[%clk 0:00:14.4]} 64. g4 {[%clk 0:00:24.2]} 64... fxg4 {[%clk
0:00:14.5]} 65. fxg4 {[%clk 0:00:25.6]} 65... Rc1 {[%clk 0:00:13.7]} 66. Rd6
{[%clk 0:00:26.7]} 66... Rf1+ {[%clk 0:00:13.2]} 67. Kg3 {[%clk 0:00:26.4]}
67... Kf7 {[%clk 0:00:13.7]} 68. Rd4 {[%clk 0:00:24.6]} 68... Re1 {[%clk
0:00:13.3]} 69. Kf2 {[%clk 0:00:24.9]} 69... Rh1 {[%clk 0:00:11.2]} 70. Kg3
{[%clk 0:00:25.7]} 70... Rg1+ {[%clk 0:00:10.7]} 71. Kh2 {[%clk 0:00:23.8]}
71... Re1 {[%clk 0:00:10.1]} 72. Re4 {[%clk 0:00:24.9]} 72... Kg6 {[%clk
0:00:10.4]} 73. Kg2 {[%clk 0:00:23.5]} 73... Re2+ {[%clk 0:00:09.6]} 74. Kf3
{[%clk 0:00:23.7]} 74... Rh2 {[%clk 0:00:10]} 75. Kg3 {[%clk 0:00:24.9]} 75...
Re2 {[%clk 0:00:10.3]} 76. Kf3 {[%clk 0:00:21.3]} 76... Rh2 {[%clk 0:00:10]} 77.
h5+ {[%clk 0:00:22.6]} 77... Kg5 {[%clk 0:00:09.6]} 78. Rf4 {[%clk 0:00:23.1]}
78... Rh3+ {[%clk 0:00:08.4]} 79. Ke4 {[%clk 0:00:24]} 79... Rg3 {[%clk
0:00:05.3]} 80. h6 {[%clk 0:00:16.8]} 1-0